bitfinex-derivatives/quotes_ETHF0:USTF0_20250702
["timestamp","ask_amount","ask_price","bid_price","bid_amount"]
[1751473819368,12.859,2541.0,2540.1,2.7558]
[1751473819569,0.78683,2540.8,2540.1,2.7558]
[1751473819778,41.217,2540.9,2540.1,5.5634]
[1751473820074,43.8284,2540.9,2540.1,5.5634]
[1751473820474,0.78685,2540.7,2540.3,0.78693]
[1751473820669,0.78682,2540.8,2540.4,2.7558]
[1751473820972,0.78679,2540.9,2540.4,2.7558]
[1751473821176,41.212,2541.0,2540.4,2.7558]
[1751473821371,0.78683,2540.8,2540.5,0.78689]
[1751473821676,0.78684,2540.7,2540.5,0.78689]
[1751473821977,0.78682,2540.8,2540.5,0.78688]
[1751473822377,0.78682,2540.8,2540.4,2.7558]
[1751473822673,0.78684,2540.7,2540.5,0.78688]
[1751473822877,0.78684,2540.7,2540.6,2.8633]
[1751473823175,1.96718,2540.6,2539.4,1.96805]
[1751473823380,15.4704,2540.5,2539.5,2.8633]
[1751473823581,0.78705,2540.1,2539.8,0.7871]
[1751473823784,43.16833,2540.4,2539.6,0.78716]
[1751473823983,0.7871,2539.9,2539.7,3.65044]
[1751473824378,0.78708,2540.0,2539.7,3.65044]
[1751473824579,0.78708,2540.0,2539.8,0.78711]
[1751473824779,0.78708,2540.0,2539.7,3.65043]
[1751473824979,0.78709,2539.9,2539.7,3.65043]
[1751473825181,7.28553,2540.3,2539.7,2.8633]
[1751473825382,0.78704,2540.1,2539.9,0.78708]
[1751473825586,0.78706,2540.0,2539.8,0.7871]
[1751473825786,0.78704,2540.1,2539.9,0.78708]
[1751473825987,2.7067,2540.3,2539.7,2.8633]
[1751473826384,2.7067,2540.3,2539.8,0.78711]
[1751473826688,0.78705,2540.1,2539.8,0.78711]
[1751473826985,0.78702,2540.2,2539.9,0.78709]
[1751473827186,2.7067,2540.3,2539.7,2.8633]
[1751473827383,2.7067,2540.3,2539.8,1.9678]
[1751473827684,41.182,2540.6,2539.9,2.8955]
[1751473827887,46.5671,2540.6,2539.5,1.96802]
[1751473828089,0.78705,2540.1,2539.8,0.7871]
[1751473828279,0.78705,2540.1,2539.9,0.78708]
[1751473828482,0.78697,2540.3,2540.1,0.78702]
[1751473828683,0.78702,2540.1,2539.9,0.78707]
[1751473828886,0.78702,2540.1,2539.8,3.7244]
[1751473829085,1.96743,2540.3,2539.8,3.7244]
[1751473829388,0.78704,2540.1,2539.8,0.7871]
[1751473829589,0.78704,2540.1,2539.5,1.96802]
[1751473829590,4.58274,2540.3,2539.4,2.9373]
[1751473829789,4.58274,2540.3,2539.7,0.78715]
[1751473830085,1.96778,2539.9,2538.8,4.9941213]
[1751473830382,0.78725,2539.4,2538.7,4.9941813]
[1751473830588,0.78728,2539.3,2539.0,0.78735]
[1751473830988,0.78728,2539.3,2538.9,0.78738]
[1751473831193,0.78727,2539.3,2539.0,0.78736]
[1751473831489,15.4753,2539.6,2538.7,2.9373]
[1751473831490,41.95431,2539.2,2538.9,0.78737]
[1751473831686,41.167,2539.2,2539.0,0.78736]
[1751473831887,0.78728,2539.3,2539.0,0.78736]
[1751473832087,2.8202,2539.5,2538.7,2.9373]
[1751473832088,41.16,2539.2,2538.7,2.9373]
[1751473832285,8.0414477,2538.9,2538.0,3.0255513]
[1751473832585,41.157,2539.1,2538.0,8.0414477]
[1751473832791,72.1553,2539.3,2538.3,8.0414477]
[1751473832987,1.96834,2539.1,2538.4,2.7542]
[1751473833182,0.78756,2538.4,2537.8,2.8857]
[1751473833386,41.159,2538.6,2538.2,0.78759]
[1751473833585,41.9465,2538.6,2538.3,0.78758]
[1751473833801,2.6153,2538.8,2537.9,2.7542]
[1751473834090,0.78757,2538.4,2538.1,0.78764]
[1751473834286,0.78754,2538.5,2538.2,0.78761]
[1751473834487,0.78753,2538.5,2538.3,0.78757]
[1751473834688,0.78756,2538.4,2538.2,0.7876]
[1751473835185,0.78756,2538.4,2538.1,0.78763]
[1751473835390,41.157,2538.6,2538.1,0.78763]
[1751473835592,0.78758,2538.4,2538.1,0.78763]
[1751473835889,58.64622,2539.3,2538.6,0.78747]
[1751473836089,2.7003,2539.1,2538.0,2.963]
[1751473836291,0.78756,2538.4,2538.0,2.963]
[1751473836491,0.78756,2538.4,2538.2,0.78761]
[1751473836792,0.78754,2538.5,2538.3,0.78758]
[1751473836992,2.6195,2538.8,2538.0,2.963]
[1751473837491,0.78751,2538.6,2538.3,0.78758]
[1751473837893,16.20462,2538.9,2538.4,0.78755]
[1751473838087,16.20462,2538.9,2538.3,0.78756]
[1751473838383,0.78743,2538.8,2538.3,0.78756]
[1751473838588,0.78743,2538.8,2538.0,2.963]
[1751473838589,2.6192,2538.8,2538.0,4.93218]
[1751473838791,0.78748,2538.7,2538.4,0.78755]
[1751473838991,2.6192,2538.6,2538.4,0.78755]
[1751473839193,2.6192,2538.6,2538.5,0.78752]
[1751473840193,13.58541,2538.9,2538.6,0.78746]
[1751473840590,12.798,2538.9,2538.7,0.78744]
[1751473840989,12.798,2538.9,2538.6,0.78748]
[1751473841193,12.798,2538.9,2538.8,0.78743]
[1751473841390,0.78721,2539.5,2539.2,0.78729]
[1751473841594,0.78724,2539.4,2539.0,0.78735]
[1751473841894,2.6192,2539.4,2538.9,1.96847]
[1751473842190,3.40646,2539.4,2539.1,0.78733]
[1751473842386,2.6192,2539.4,2539.2,0.78729]
[1751473842591,2.6192,2539.4,2539.3,0.78727]
[1751473842892,41.126,2539.4,2539.3,0.78727]
[1751473843093,2.7275,2539.5,2539.4,0.78724]
[1751473843294,43.8505,2539.5,2539.4,0.78724]
[1751473843588,48.8505,2539.5,2538.7,2.8239]
[1751473843788,1.9685,2538.9,2537.8,1.96933]
[1751473843988,1.96879,2538.6,2537.7,2.8911]
[1751473844184,5.4053,2538.5,2537.7,2.8911]
[1751473844389,5.4053,2538.5,2537.4,2.25741121]
[1751473844592,0.78769,2538.0,2537.3,1.96969]
[1751473844787,41.114,2538.1,2537.4,2.8911]
[1751473844987,41.112,2538.4,2537.9,1.96926]
[1751473845190,2.7882,2538.5,2538.0,2.8911]
[1751473845394,3.57575,2538.5,2538.2,0.7876]
[1751473846093,43.8952,2538.5,2538.0,2.8911]
[1751473846294,0.78757,2538.4,2538.1,0.78764]
[1751473846691,0.78758,2538.3,2538.1,0.78764]
[1751473846890,44.68274,2538.5,2538.1,0.78764]
[1751473847091,43.8952,2538.5,2538.0,2.8911]
[1751473847298,0.78757,2538.4,2538.1,0.78762]
[1751473847591,43.8952,2538.5,2538.0,4.86027]
[1751473847797,41.101,2538.7,2538.4,0.78752]
[1751473848096,41.101,2538.7,2538.5,0.7875]
[1751473848298,12.802,2538.9,2538.3,1.96893]
[1751473848596,53.899,2538.9,2538.3,3.56445]
[1751473848790,15.4191,2538.9,2538.3,2.7769]
[1751473848991,12.802,2538.9,2538.3,2.7769]
[1751473849194,0.78744,2538.8,2538.3,2.7769]
[1751473849393,12.802,2538.9,2538.3,2.7769]
[1751473849595,13.58941,2538.9,2538.6,0.78747]
[1751473849990,12.802,2538.9,2538.6,0.78747]
[1751473850192,0.78743,2538.8,2538.5,0.7875]
[1751473850387,12.802,2538.9,2538.0,1.96917]
[1751473850590,12.802,2538.9,2538.3,0.78755]
[1751473850794,20.8434477,2538.9,2537.8,2.7749]
[1751473851092,8.0414477,2538.3,2537.7,2.8407]
[1751473851289,10.0106377,2538.0,2537.2,2.6833]
[1751473851493,2.645,2537.9,2537.2,2.6833]
[1751473852395,0.78784,2537.5,2537.2,2.6833]
[1751473852602,0.78787,2537.4,2537.2,2.6833]
[1751473852899,0.78793,2537.2,2536.3,3.47767713]
[1751473853100,0.78793,2537.2,2536.8,3.66594]
[1751473853400,0.78783,2537.5,2537.0,0.78796]
[1751473853700,1.96951,2537.6,2536.4,5.6979]
[1751473853896,2.6461,2537.4,2536.7,0.78806]
[1751473854101,0.78793,2537.2,2536.8,0.78803]
[1751473854395,55.84845,2537.7,2536.9,2.8779]
[1751473854698,53.879,2537.7,2537.1,0.78792]
[1751473854897,0.78781,2537.6,2537.2,2.8779]
[1751473855096,54.66177,2537.7,2537.3,0.78786]
[1751473855297,53.874,2537.7,2537.4,2.8779]
[1751473855597,12.803,2537.7,2537.5,0.78782]
[1751473855799,12.803,2537.7,2537.6,0.78779]
[1751473856194,41.064,2537.9,2537.4,2.8779]
[1751473856395,0.7877,2537.9,2537.6,0.78778]
[1751473856590,41.84969,2538.0,2537.7,3.48145]
[1751473856796,41.062,2538.0,2537.7,2.6937]
[1751473857198,0.78771,2537.9,2537.7,2.6937]
[1751473857796,41.062,2538.0,2537.7,2.6937]
[1751473858004,15.5751,2538.5,2538.0,0.78766]
[1751473858302,0.78758,2538.3,2538.1,2.6937]
[1751473858601,0.78764,2538.1,2537.8,0.78772]
[1751473859002,0.78764,2538.1,2537.9,2.9278]
[1751473859204,0.78771,2537.9,2537.2,5.5235]
[1751473859500,10.0103977,2538.3,2537.3,2.9278]
[1751473859804,41.055,2538.4,2537.8,0.78772]
[1751473860199,41.055,2538.4,2537.3,1.9697]
[1751473860406,0.7877,2537.9,2537.6,0.78776]
[1751473860605,0.78769,2538.0,2537.6,0.78776]
[1751473860901,0.7878,2537.6,2537.4,2.9278]
[1751473861097,8.0414477,2537.7,2536.8,1.50722713]
[1751473861302,12.806,2537.8,2537.3,0.78787]
[1751473861507,0.78783,2537.5,2537.2,0.78791]
[1751473861702,0.78781,2537.6,2537.2,0.78791]
[1751473861904,0.78781,2537.6,2537.3,0.78788]
[1751473862201,0.78801,2536.9,2536.7,2.8414]
[1751473862400,41.033,2537.1,2536.7,2.8567]
[1751473862603,41.82096,2537.1,2536.7,3.64476]
[1751473862802,41.033,2537.1,2536.7,2.8567]
[1751473863005,41.033,2537.1,2536.6,0.78809]
[1751473863006,0.78802,2536.9,2536.5,0.7881]
[1751473863208,0.78799,2537.0,2536.4,2.8567]
[1751473863508,0.78801,2536.9,2536.6,0.78809]
[1751473863706,2.3474268,2538.1,2536.8,8.0414477]
[1751473863909,53.832,2537.8,2537.0,1.96995]
[1751473864211,53.832,2537.8,2537.6,0.78778]
[1751473864410,53.832,2537.8,2537.1,5.7412]
[1751473864706,0.78784,2537.5,2537.2,2.8567]
[1751473865399,69.2161977,2537.8,2537.2,2.8567]
[1751473865400,0.78786,2537.4,2537.2,2.8567]
[1751473865606,0.78786,2537.4,2536.5,11.52626107]
[1751473865607,0.78793,2537.2,2536.9,0.788]
[1751473865800,12.752,2537.2,2536.8,2.9547]
[1751473866206,1.96995,2537.0,2536.2,1.51453337]
[1751473866410,0.78812,2536.6,2536.3,3.74288]
[1751473866606,12.752,2536.6,2536.3,2.9547]
[1751473866807,13.5401,2536.6,2536.3,3.74288]
[1751473867008,12.752,2536.6,2536.3,3.74288]
[1751473867209,12.752,2536.6,2536.4,0.78815]
[1751473867411,12.752,2536.6,2536.5,3.74283]
[1751473867607,12.752,2536.6,2536.5,2.9547]
[1751473868313,12.752,2536.6,2536.1,5.6824]
[1751473868507,0.7882,2536.3,2536.2,2.7968]
[1751473869211,0.78818,2536.4,2536.2,2.7968]
[1751473869411,12.752,2536.6,2536.2,2.7968]
[1751473869613,0.7882,2536.3,2536.2,2.7968]
[1751473869809,41.79218,2536.4,2536.2,2.7968]
[1751473870113,0.78812,2536.6,2536.3,0.7882]
[1751473870305,53.751,2536.5,2536.4,3.58496]
[1751473870505,56.729,2536.9,2536.4,2.7968]
[1751473870810,56.729,2536.9,2536.7,0.78807]
[1751473870811,12.754,2536.8,2536.7,0.78807]
[1751473871010,56.729,2536.9,2536.8,0.78804]
[1751473871213,12.756,2536.8,2536.7,0.78805]
[1751473871908,1.97012,2536.8,2534.7,5.30086682]
[1751473872113,0.78836,2535.8,2535.6,1.51453337]
[1751473872310,0.78836,2535.8,2535.7,2.6933]
[1751473872505,53.744,2536.0,2535.7,2.6933]
[1751473872714,0.78833,2535.9,2535.7,3.48167]
[1751473872909,0.78833,2535.9,2535.8,2.6933]
[1751473873110,1.97093,2535.8,2535.2,7.03923337]
[1751473873407,3.94014,2536.9,2535.3,2.6933]
[1751473873606,3.912378,2538.0,2537.6,0.78779]
[1751473873811,1.96902,2538.2,2537.7,2.6933]
[1751473874011,12.756,2538.1,2537.7,2.6933]
[1751473874209,0.78773,2537.8,2537.7,2.6933]
[1751473874410,0.78769,2538.0,2537.7,2.6933]
[1751473874614,0.78769,2538.0,2537.7,3.48105]
[1751473874908,0.78773,2537.9,2537.7,2.6933]
[1751473875108,0.78773,2537.9,2537.8,2.7003]
[1751473875314,13.54573,2537.9,2537.8,2.7003]
[1751473876513,12.758,2537.9,2537.8,2.7003]
[1751473876808,17.758,2537.9,2536.6,1.13493664]
[1751473877013,0.78799,2537.0,2536.6,3.64818]
[1751473877212,0.78799,2537.0,2536.7,2.9284]
[1751473877213,12.758,2536.9,2536.7,2.9284]
[1751473877412,0.78804,2536.8,2536.7,2.9284]
[1751473877611,0.78813,2536.6,2536.2,3.86733664]
[1751473877813,12.758,2536.9,2536.3,2.9284]
[1751473878013,0.78811,2536.6,2536.3,2.9284]
[1751473878213,0.78807,2536.7,2536.3,3.71659]
[1751473878413,0.78808,2536.7,2536.3,3.71658]
[1751473878610,5.484,2537.2,2536.4,0.78814]
[1751473878813,0.78805,2536.8,2536.5,2.9284]
[1751473879317,0.78806,2536.8,2536.5,2.9284]
[1751473879609,12.756,2536.8,2536.6,0.7881]
[1751473879813,12.756,2536.8,2536.7,2.9284]
[1751473880009,56.752,2537.3,2536.7,2.9284]
[1751473880208,53.712,2537.2,2537.1,0.78793]
[1751473880405,56.752,2537.3,2536.8,2.8257]
[1751473880609,56.752,2537.3,2536.9,2.9564]
[1751473880610,53.713,2537.2,2536.9,2.9564]
[1751473881009,54.50094,2537.2,2536.9,4.09133664]
[1751473881206,0.78798,2537.0,2536.9,2.9564]
[1751473881611,0.78798,2537.0,2536.9,1.51453337]
[1751473882012,0.78801,2536.9,2536.8,1.51453337]
[1751473882315,1.9701,2536.9,2536.4,2.27180006]
[1751473882608,10.0118577,2536.5,2536.1,3.02906675]
[1751473882913,53.705,2536.4,2536.1,3.02906675]
[1751473883111,0.78824,2536.2,2535.9,3.02906675]
[1751473883306,0.78821,2536.3,2536.0,2.7532]
[1751473883511,53.705,2536.4,2536.0,5.78226675]
[1751473883712,0.7882,2536.3,2536.1,3.02906675]
[1751473883913,0.7882,2536.3,2536.2,2.7532]
[1751473884314,0.78818,2536.4,2536.2,2.7532]
[1751473884514,53.702,2536.3,2536.2,2.7532]
[1751473884715,54.49019,2536.3,2536.2,2.7532]
[1751473885416,53.702,2536.3,2536.0,3.02906675]
[1751473885910,0.78832,2535.9,2535.8,3.02906675]
[1751473886113,41.72332,2535.9,2535.8,3.02906675]
[1751473886315,0.78835,2535.8,2535.7,3.02906675]
[1751473887210,59.5501,2536.2,2535.6,3.02906675]
[1751473887411,0.78833,2535.9,2535.5,2.7829]
[1751473887611,55.66071,2536.1,2535.5,2.7829]
[1751473887815,59.5501,2536.2,2535.6,0.78839]
[1751473888117,53.687,2536.1,2535.7,2.7829]
[1751473888318,59.5501,2536.2,2535.7,2.7829]
[1751473888515,12.758,2536.1,2535.7,2.7829]
[1751473888815,53.684,2536.0,2535.9,0.78831]
[1751473889115,53.684,2536.0,2535.7,2.7829]
[1751473889116,53.684,2536.0,2535.8,2.8798]
[1751473889316,53.684,2536.0,2535.9,2.7863]
[1751473889621,53.68,2536.0,2535.9,3.57462]
[1751473889818,56.749,2536.2,2536.0,0.78826]
[1751473890013,56.749,2536.2,2535.9,7.7863]
[1751473890014,97.675,2536.2,2536.1,2.7863]
[1751473890219,97.675,2536.2,2536.1,3.57456]
[1751473890616,12.759,2536.5,2536.1,3.57456]
[1751473890914,40.92,2536.4,2536.3,0.78819]
[1751473891414,13.54715,2536.5,2536.2,2.7863]
[1751473891720,12.759,2536.5,2536.4,0.78816]
[1751473891920,53.676,2536.5,2536.4,0.78816]
[1751473892116,53.676,2536.5,2536.2,2.7863]
[1751473892314,0.78819,2536.3,2536.2,2.7863]
[1751473893414,66.7704977,2536.9,2536.2,2.7863]
[1751473893619,0.78819,2536.3,2536.2,2.7863]
[1751473893817,40.906,2536.3,2536.2,3.57452]
[1751473894216,41.69419,2536.3,2536.2,3.57452]
[1751473894718,40.906,2536.5,2536.2,2.7863]
[1751473895020,0.78819,2536.3,2536.2,2.7863]
[1751473897421,0.78817,2536.4,2536.2,2.7863]
[1751473897727,41.68615,2536.5,2536.2,3.57452]
[1751473898021,0.78817,2536.4,2536.2,2.7863]
[1751473898221,53.596,2536.3,2536.2,3.57452]
[1751473898622,0.78814,2536.5,2536.2,3.57452]
[1751473898823,53.593,2536.4,2536.3,0.78819]
[1751473899015,53.593,2536.4,2536.2,3.5745]
[1751473899321,53.593,2536.4,2536.3,0.78819]
[1751473899521,59.4358,2536.9,2536.3,2.757]
[1751473899724,53.589,2536.8,2536.4,0.78814]
[1751473900221,53.589,2536.8,2536.3,2.757]
[1751473900423,53.589,2536.7,2536.5,0.78811]
[1751473900622,0.78804,2536.8,2536.6,0.7881]
[1751473900823,57.54701,2536.9,2536.7,0.78805]
[1751473901024,53.583,2536.8,2536.4,2.8724]
[1751473901224,0.78808,2536.7,2536.5,3.54512]
[1751473901424,40.867,2536.6,2536.5,3.54512]
[1751473902426,57.54701,2536.9,2536.7,0.78804]
[1751473902626,53.573,2536.8,2536.7,0.78806]
[1751473902926,12.713,2537.1,2537.0,0.78796]
[1751473903127,12.713,2537.2,2536.7,1.97016]
[1751473903322,13.50091,2537.2,2537.1,0.78793]
[1751473903526,54.35691,2537.2,2537.1,0.78793]
[1751473903826,53.569,2537.2,2537.1,0.78793]
[1751473904024,0.78791,2537.2,2537.1,0.78793]
[1751473904328,69.47,2537.9,2537.6,0.78779]
[1751473904627,53.562,2537.8,2537.3,2.817]
[1751473904828,0.78783,2537.5,2537.4,0.78783]
[1751473905026,0.78781,2537.6,2537.5,0.78782]
[1751473905227,0.78785,2537.4,2537.3,3.60486]
[1751473905628,12.711,2537.8,2537.5,0.7878]
[1751473905927,41.62577,2537.7,2537.6,0.78777]
[1751473906128,0.78769,2538.0,2537.8,0.7877]
[1751473906428,41.62471,2537.9,2537.7,0.78774]
[1751473906728,0.78775,2537.8,2537.3,12.8281577]
[1751473907028,41.62272,2537.9,2537.8,0.78773]
[1751473907230,40.835,2537.9,2537.3,2.817]
[1751473907425,1.96933,2537.8,2537.3,2.817]
[1751473907724,5.603,2538.3,2537.3,2.817]
[1751473908027,0.78771,2537.9,2537.7,0.78773]
[1751473908229,0.78765,2538.1,2537.6,1.96948]
[1751473908424,40.82,2537.8,2537.7,0.78776]
[1751473908828,40.82,2537.8,2537.3,2.817]
[1751473909030,0.78781,2537.6,2537.4,0.78783]
[1751473909232,0.78781,2537.6,2537.5,0.78782]
[1751473909424,0.78784,2537.5,2537.3,2.817]
[1751473909626,40.82,2537.8,2537.3,2.817]
[1751473909825,40.82,2537.8,2536.8,2.7476]
[1751473910129,1.96976,2537.3,2536.9,0.78798]
[1751473910328,8.0414477,2537.6,2536.6,1.97026]
[1751473910329,0.78797,2537.1,2537.0,0.78797]
[1751473910531,2.7155,2537.5,2536.7,1.97015]
[1751473910730,54.30086,2537.4,2537.3,0.78788]
[1751473910930,53.513,2537.4,2537.2,0.7879]
[1751473911230,0.78788,2537.4,2537.3,0.78788]
[1751473911623,2.9127,2537.7,2537.1,1.96983]
[1751473911824,15.4474,2538.0,2537.3,1.96972]
[1751473912022,0.78774,2537.8,2537.7,0.78774]
[1751473912431,40.794,2537.9,2537.6,0.78776]
[1751473912631,0.78775,2537.8,2537.7,0.78775]
[1751473912833,40.794,2537.9,2537.6,0.78776]
[1751473913029,0.78778,2537.7,2537.5,0.78779]
[1751473913226,0.78775,2537.8,2537.7,0.78776]
[1751473913533,0.78776,2537.7,2537.6,0.78777]
[1751473913733,0.78779,2537.6,2537.5,0.7878]
[1751473914030,40.794,2537.9,2537.5,0.7878]
[1751473914229,0.78778,2537.7,2537.5,0.7878]
[1751473915031,40.794,2537.9,2537.4,0.78782]
[1751473915232,1.96933,2537.8,2536.9,4.73022]
[1751473915427,0.78783,2537.5,2537.3,0.78786]
[1751473915628,40.771,2537.4,2537.3,0.78786]
[1751473916728,0.7879,2537.3,2536.9,4.73022]
[1751473916930,0.78793,2537.2,2536.9,2.7602]
[1751473917129,0.7879,2537.3,2537.1,0.78794]
[1751473917330,0.78777,2537.7,2537.6,0.78779]
[1751473917630,0.78782,2537.5,2537.4,0.78784]
[1751473917829,0.78784,2537.5,2537.4,0.78785]
[1751473918232,53.464,2537.7,2537.5,0.78779]
[1751473918527,2.7394,2538.0,2537.2,1.96979]
[1751473918729,0.78775,2537.8,2537.4,1.96961]
[1751473918927,0.78777,2537.7,2537.6,0.78778]
[1751473919732,53.455,2537.7,2537.6,0.78779]
[1751473919928,2.7394,2538.0,2537.4,1.96963]
[1751473920129,2.7394,2538.0,2537.5,1.96953]
[1751473920330,12.707,2537.9,2537.8,0.78772]
[1751473920534,0.78774,2537.8,2537.7,0.78773]
[1751473920735,12.707,2537.9,2537.8,0.78773]
[1751473920935,12.707,2537.9,2537.6,1.96947]
[1751473921137,53.444,2537.9,2537.8,0.78773]
[1751473921433,12.707,2537.9,2537.8,0.78773]
[1751473921737,13.49471,2537.9,2537.8,0.78773]
[1751473921932,0.78766,2538.1,2538.0,0.78767]
[1751473922137,2.9127,2538.2,2537.8,1.96933]
[1751473922337,0.78759,2538.3,2537.8,1.96933]
[1751473922539,0.78759,2538.3,2538.2,0.78758]
[1751473922736,0.78759,2538.3,2537.9,4.94249]
[1751473922737,4.71713,2538.6,2537.9,4.94249]
[1751473922939,0.78765,2538.1,2538.0,0.78764]
[1751473923135,42.69204,2538.2,2537.4,4.75232]
[1751473923437,0.78776,2537.7,2537.6,2.8155]
[1751473924043,0.78776,2537.7,2537.6,3.60329]
[1751473924243,0.78775,2537.8,2537.7,0.78775]
[1751473924545,0.78769,2538.0,2537.7,2.8155]
[1751473924744,0.78773,2537.8,2537.7,2.8155]
[1751473925243,0.78772,2537.9,2537.7,2.8155]
[1751473925547,0.78773,2537.8,2537.7,2.8155]
[1751473925748,1.96936,2537.8,2537.1,1.5136696]
[1751473925940,1.96936,2537.8,2536.9,4.4036696]
[1751473925941,1.96965,2537.4,2536.9,4.4036696]
[1751473926147,0.78797,2537.0,2536.9,2.89]
[1751473926446,0.78795,2537.1,2536.9,2.89]
[1751473926648,58.06738,2537.5,2536.9,3.67799]
[1751473927047,2.9931,2537.7,2536.9,10.9314477]
[1751473927247,12.651,2537.6,2537.0,1.5136696]
[1751473927448,13.43881,2537.6,2537.3,0.78787]
[1751473927650,13.43881,2537.6,2537.4,2.89]
[1751473928151,12.651,2537.6,2537.4,2.89]
[1751473928351,12.651,2537.6,2537.4,3.67784]
[1751473928550,12.651,2537.6,2537.5,0.78782]
[1751473928855,12.651,2537.6,2537.5,3.65562]
[1751473929450,0.78777,2537.7,2537.5,2.8678]
[1751473929752,0.78779,2537.6,2537.5,2.8678]
[1751473929953,57.51674,2537.8,2537.5,3.6556]
[1751473930149,0.78776,2537.7,2537.5,2.8678]
[1751473930349,56.729,2537.8,2537.5,2.8678]
[1751473930651,0.78764,2538.1,2537.9,0.78767]
[1751473930844,0.78764,2538.1,2538.0,2.8678]
[1751473931042,41.46162,2538.2,2538.0,3.65546]
[1751473931247,0.78763,2538.1,2538.0,3.65546]
[1751473931451,0.78763,2538.1,2538.0,2.8678]
[1751473932249,40.674,2538.2,2537.6,2.847]
[1751473932447,7.44287,2538.4,2537.7,2.8519]
[1751473932651,0.78766,2538.0,2537.8,0.78771]
[1751473932958,0.78775,2537.8,2537.6,3.63478]
[1751473933154,0.78775,2537.8,2537.7,2.8519]
[1751473933358,0.78772,2537.9,2537.7,2.8519]
[1751473933654,1.96918,2538.0,2537.5,1.5136696]
[1751473933853,0.78782,2537.5,2537.4,1.5136696]
[1751473934062,54.09182,2537.5,2537.4,1.5136696]
[1751473934358,59.09182,2537.5,2537.4,1.5136696]
[1751473934563,0.78788,2537.3,2537.2,1.5136696]
[1751473935358,2.7302,2537.4,2537.0,3.0273392]
[1751473935559,0.78788,2537.3,2537.2,2.28029183]
[1751473937456,0.78788,2537.3,2537.2,1.52061564]
[1751473937859,0.78788,2537.3,2537.2,2.28029183]
[1751473938458,54.06388,2537.3,2537.2,1.52049071]
[1751473939259,0.78791,2537.2,2537.1,1.52049071]
[1751473939459,0.78797,2537.0,2536.9,1.52049071]
[1751473939660,41.41297,2537.0,2536.9,1.52049071]
[1751473939857,40.625,2537.0,2536.8,4.38089071]
[1751473940057,41.41299,2537.0,2536.8,4.38089071]
[1751473940360,40.625,2537.0,2536.8,4.38089071]
[1751473940760,0.78801,2536.9,2536.8,4.38089071]
[1751473940956,41.406,2537.0,2536.8,4.38089071]
[1751473941262,41.40598,2537.0,2536.8,5.16890071]
[1751473941460,0.78801,2536.9,2536.8,4.38089071]
[1751473941660,41.40599,2537.0,2536.8,4.38089071]
[1751473941961,41.40599,2537.0,2536.8,5.16893071]
[1751473942163,0.78796,2537.1,2536.9,0.78801]
[1751473942459,0.78801,2536.9,2536.8,1.52049071]
[1751473942657,0.78801,2536.9,2536.4,1.52049071]
[1751473942658,1.9701,2536.8,2536.4,1.52049071]
[1751473942864,1.9701,2536.8,2536.2,2.28029183]
[1751473942865,1.97025,2536.6,2536.2,1.52049071]
[1751473943058,0.78819,2536.3,2536.2,4.26889071]
[1751473943254,0.78819,2536.3,2536.2,2.7484]
[1751473943659,0.78818,2536.4,2536.2,2.7484]
[1751473943859,0.78818,2536.4,2536.2,5.05711071]
[1751473944062,0.78818,2536.4,2536.2,4.26889071]
[1751473944258,0.78818,2536.4,2536.3,2.99]
[1751473944465,0.78822,2536.2,2536.1,1.52049071]
[1751473944763,0.78825,2536.1,2536.0,2.99]
[1751473944956,41.37525,2536.1,2536.0,2.99]
[1751473945560,0.78828,2536.0,2535.9,2.7148]
[1751473945864,1.97044,2536.4,2535.7,2.99]
[1751473946064,58.70728,2536.6,2535.9,2.99]
[1751473946357,53.229,2536.5,2535.9,2.99]
[1751473946562,0.78823,2536.2,2535.9,3.7783]
[1751473946764,40.581,2536.1,2535.9,3.7783]
[1751473946964,58.70728,2536.6,2535.9,3.7783]
[1751473946965,56.737,2536.6,2535.9,4.96077]
[1751473947160,40.576,2536.5,2536.0,8.0414477]
[1751473947360,40.576,2536.5,2536.1,2.7917]
[1751473947361,0.78822,2536.2,2536.1,2.7917]
[1751473947561,0.78817,2536.4,2536.1,2.7917]
[1751473947760,56.737,2536.6,2536.5,0.78813]
[1751473947965,0.78815,2536.5,2536.3,0.78818]
[1751473948264,110.74911,2536.6,2536.4,0.78816]
[1751473948562,56.737,2536.6,2536.5,3.57983]
[1751473949061,2.8612,2537.3,2536.5,7.7917]
[1751473949260,12.655,2538.1,2537.1,1.52049071]
[1751473949460,1.96927,2537.9,2537.2,2.7917]
[1751473949761,53.2808177,2538.0,2537.2,2.7917]
[1751473949964,2.7112,2538.0,2537.2,2.7917]
[1751473950268,0.78777,2537.7,2537.2,2.7917]
[1751473950468,0.78776,2537.7,2537.5,0.7878]
[1751473950766,2.8612,2538.1,2537.6,0.78777]
[1751473951067,53.208,2538.0,2537.6,0.78777]
[1751473951364,0.78777,2537.7,2537.4,0.78783]
[1751473951662,0.78784,2537.5,2537.2,0.78789]
[1751473951868,0.78785,2537.4,2537.3,2.8755]
[1751473952165,40.548,2537.5,2537.0,2.9642]
[1751473952367,0.78797,2537.0,2536.9,2.8755]
[1751473952570,40.542,2537.0,2536.5,8.00740071]
[1751473952769,0.78805,2536.8,2536.6,1.52049071]